fUSD/lending_fUSD_20251001
["ID","MTS","AMOUNT","RATE_DAILY","PERIOD"]
[388764367,1759351849818,-266.20642368,0.00017812,2]
[388764377,1759351849899,150.0,0.0001485,2]
[388764380,1759351849921,-233.79357632,0.00017812,2]
[388764382,1759351849930,-710.97,0.00017812,2]
[388764384,1759351849942,-2258.24,0.00017812,2]
[388764386,1759351849953,-78.72316656,0.00017821,2]
[388764392,1759351849997,-101.27683344,0.00017821,2]
[388764394,1759351850006,-180.0,0.00017866,2]
[388764396,1759351850017,-119.22316656,0.00017953,2]
[388764406,1759351850096,150.0,0.0001603,2]
[388767046,1759351898282,158.72,8.575e-05,2]
[388767047,1759351898486,158.72,0.00010004,2]
[388767048,1759351898693,158.72,0.00011433,2]
[388767049,1759351898908,158.72,0.00012862,2]
[388767050,1759351899128,158.72,0.00014292,2]
[388767051,1759351899330,158.72,0.00015721,2]
[388767054,1759351999824,500.0,0.00016547,2]
[388767126,1759352362138,150.0,0.000113,2]
[388767128,1759352362613,150.0,0.0001248,2]
[388767129,1759352362948,150.0,0.0001367,2]
[388767130,1759352363329,150.0,0.0001485,2]
[388767131,1759352363723,150.0,0.0001603,2]
[388767174,1759352449481,-167.35,0.00016608,2]
[388767200,1759352495528,-365.406825,0.00016608,2]
[388767214,1759352539293,365.406825,0.00016524,2]
[388767224,1759352555729,1324.29,0.00016422,2]
[388767248,1759352561490,20400.97,0.00016422,2]
[388767265,1759352623480,26055.37,0.00016526,2]
[388767283,1759352712858,-315.19324563,0.00016608,2]
[388767284,1759352716591,-152.04992937,0.00016608,2]
[388767285,1759352716616,-176.61899402,0.00016613,2]
[388767286,1759352720152,-18.38100598,0.00016613,2]
[388767287,1759352720177,-149.19214289,0.00016613,2]
[388767288,1759352723463,-150.80785711,0.00016613,2]
[388767289,1759352723488,-3.59101659,0.00016613,2]
[388767290,1759352727829,-427.13984803,0.00016613,2]
[388767291,1759352731765,-162.89475721,0.00016613,2]
[388767292,1759352734244,-193.54097639,0.00016613,2]
[388767293,1759352736889,-416.82540635,0.00016613,2]
[388767294,1759352739807,-462.34495586,0.00016613,2]
[388767295,1759352744774,-303.72988053,0.00016613,2]
[388767296,1759352748541,-29.93315904,0.00016613,2]
[388767297,1759352748594,-224.99,0.00016619,2]
[388767298,1759352748645,-166.47344729,0.00016643,2]
[388767299,1759352748696,-217.29527999,0.00016687,2]
[388767300,1759352748748,-163.90304267,0.00016687,2]
[388767301,1759352748799,-250.0,0.00016833,2]
[388767302,1759352748822,-300.0,0.00016845,2]
[388767303,1759352748844,-312.71,0.00016846,2]
[388767304,1759352748867,-277.87,0.00016883,2]
[388767305,1759352748890,-1051.71409552,0.00016981,2]
[388767306,1759352752009,-160.87,0.00016981,2]
[388767307,1759352756730,-179.27590448,0.00016981,2]
[388767308,1759352758312,173.16088406,0.00016783,2]
[388767316,1759352778066,-539.28387129,0.00016775,2]
[388767340,1759352867153,-212.23573647,0.00016708,2]
[388767341,1759352869309,-155.72432608,0.00016708,2]
[388767342,1759352871507,-261.82993745,0.00016708,2]
[388767343,1759352871529,-71.66993993,0.00016775,2]
[388767344,1759352875590,-71.47618878,0.00016775,2]
[388767345,1759352875611,-218.38381122,0.00016775,2]
[388767346,1759352877664,-194.76652254,0.00016775,2]
[388767347,1759352878985,-206.60520624,0.00016775,2]
[388767351,1759352880644,150.0,0.000113,2]
[388767353,1759352881080,150.0,0.0001248,2]
[388767354,1759352881523,150.0,0.0001367,2]
[388767355,1759352882011,150.0,0.0001485,2]
[388767357,1759352882442,150.0,0.0001603,2]
[388767358,1759352885994,-182.26446,0.00016775,2]
[388767359,1759352886019,-44.16197159,0.00016887,2]
[388767360,1759352888146,-150.83802841,0.00016887,2]
[388767375,1759353031644,-3742.61468172,0.0001699,2]
[388767376,1759353031655,-300.0,0.00016999,2]
[388767377,1759353031665,-1200.0,0.00016999,2]
[388767378,1759353031675,-300.0,0.00016999,2]
[388767379,1759353031685,-1774.619,0.00017,2]
[388767380,1759353031696,-437.41,0.00017,2]
[388767382,1759353031705,-250.0,0.00017,2]
[388767383,1759353031716,-1000.0,0.00017,2]
[388767384,1759353031725,-485.7,0.00017,2]
[388767385,1759353031735,-150.0,0.00017007,2]
[388767386,1759353031746,-218.13526328,0.00017013,2]
[388767387,1759353031756,-165.66,0.00017026,2]
[388767388,1759353031766,-303.7298806,0.0001711,2]
[388767389,1759353031775,-158.72,0.0001715,2]
[388767390,1759353031784,-168.56,0.00017167,2]
[388767391,1759353031794,-150.0,0.0001722,2]
[388767392,1759353031803,-2000.0,0.000173,2]
[388767393,1759353031813,-515.0,0.00017304,2]
[388767394,1759353031823,-188.0,0.00017507,2]
[388767395,1759353031833,-1000.0,0.00017538,2]
[388767396,1759353031842,-1000.0,0.00017574,2]
[388767397,1759353031852,-618.37612114,0.00017609,2]
[388767398,1759353031861,-1016.92766938,0.00017679,2]
[388767399,1759353031871,-2341.6349273,0.00017682,2]
[388767400,1759353031881,-550.0,0.00017693,2]
[388767401,1759353031890,-506.13,0.00017694,2]
[388767402,1759353031900,-1806.59,0.00017694,2]
[388767403,1759353031910,-500.0,0.00017694,2]
[388767404,1759353031919,-500.0,0.00017694,2]
[388767405,1759353031929,-500.0,0.00017694,2]
[388767406,1759353031939,-174.94450647,0.00017694,2]
[388767407,1759353031948,-151.0,0.00017694,2]
[388767408,1759353031958,-151.0,0.00017694,2]
[388767409,1759353031967,-151.0,0.00017694,2]
[388767410,1759353031977,-151.0,0.00017694,2]
[388767411,1759353031987,-151.0,0.00017694,2]
[388767412,1759353031999,-151.0,0.00017694,2]
[388767413,1759353032011,-151.0,0.00017694,2]
[388767414,1759353032021,-151.0,0.00017694,2]
[388767415,1759353032030,-151.0,0.00017694,2]
[388767416,1759353032040,-151.0,0.00017694,2]
[388767417,1759353032049,-151.0,0.00017694,2]
[388767418,1759353032059,-151.0,0.00017694,2]
[388767419,1759353032068,-151.0,0.00017694,2]
[388767420,1759353032077,-151.0,0.00017694,2]
[388767421,1759353032087,-151.0,0.00017694,2]
[388767422,1759353032096,-151.0,0.00017694,2]
[388767423,1759353032106,-151.0,0.00017694,2]
[388767424,1759353032116,-151.0,0.00017694,2]
[388767425,1759353032126,-151.0,0.00017694,2]
[388767426,1759353032136,-151.0,0.00017694,2]
[388767427,1759353032146,-200.0,0.000177,2]
[388767428,1759353032155,-179589.6551192,0.00017705,2]
[388767429,1759353032165,-3067.1174324,0.00017705,2]
[388767430,1759353032175,-424.23,0.00017709,2]
[388767431,1759353032184,-500.0,0.00017727,2]
[388767432,1759353032193,-338.71416039,0.00017727,2]
[388767433,1759353032203,-1921.09,0.00017728,2]
[388767434,1759353032213,-4750.27,0.00017728,2]
[388767435,1759353032222,-46236.11,0.00017728,2]
[388767436,1759353032232,-299.99,0.00017728,4]
[388767437,1759353032241,-192.18665368,0.00017781,2]
[388767438,1759353032250,-1000.0,0.00017783,2]
[388767439,1759353032260,-1078.65,0.000178,7]
[388767440,1759353032270,-222.14122822,0.00017811,2]
[388767441,1759353032279,-1000.0,0.00017844,2]
[388767442,1759353032289,-500.0,0.00017844,2]
[388767443,1759353032298,-1341.0,0.00017844,2]
[388767444,1759353032308,-500.0,0.00017844,2]
[388767445,1759353032318,-1232.0,0.00017844,2]
[388767446,1759353032328,-150.0,0.00017844,2]
[388767447,1759353032337,-150.0,0.00017844,2]
[388767448,1759353032346,-150.0,0.00017844,2]
[388767449,1759353032357,-182.68631662,0.000179,2]
[388767450,1759353032367,-9182.0,0.000179,2]
[388767451,1759353032376,-200.0,0.00017953,2]
[388767452,1759353032386,-200.0,0.00017953,2]
[388767453,1759353032396,-200.0,0.00017953,2]
[388767454,1759353032406,-443.29034272,0.00017953,2]
[388767455,1759353032420,-181.40145477,0.00017953,2]
[388767456,1759353032430,-2956.65781,0.00017953,2]
[388767457,1759353032440,-1267.42157396,0.00017953,2]
[388767458,1759353032451,-200.0,0.00017953,2]
[388767459,1759353032462,-506.13,0.00017968,2]
[388767460,1759353032472,-1806.59,0.00017968,2]
[388767461,1759353032482,-500.0,0.00017989,2]
[388767462,1759353032492,-150.0,0.00017989,2]
[388767463,1759353032503,-500.0,0.00017989,2]
[388767464,1759353032513,-150.0,0.00017989,2]
[388767465,1759353032523,-500.0,0.00017989,2]
[388767466,1759353032532,-500.0,0.00017989,2]
[388767467,1759353032542,-1000.0,0.00017999,2]
[388767468,1759353032551,-5274.72975704,0.00018,2]
[388767469,1759353032574,-666.0,0.00018,2]
[388767470,1759353032586,-454.9276565,0.00018,2]
[388767471,1759353032597,-670.45874351,0.00018,2]
[388767472,1759353032631,-587.91294211,0.00018,2]
[388767473,1759353032642,-3978.53006491,0.00018,2]
[388767474,1759353032654,-1416.83432959,0.00018,2]
[388767475,1759353032685,-599.68191506,0.00018,2]
[388767476,1759353032697,-837.83927672,0.00018,2]
[388767477,1759353032708,-3157.43293745,0.00018,2]
[388767487,1759353035821,-2868.21837804,0.00018,2]
[388767488,1759353035831,-54541.37162196,0.00018,2]
[388767489,1759353035843,-36526.95426621,0.00018,2]
[388767490,1759353035862,-11916.54858358,0.00018,2]
[388767491,1759353037538,-353.83626,0.00018,2]
[388767492,1759353037792,-684.18391814,0.00018,2]
[388767493,1759353037803,-639.94946365,0.00018,2]
[388767498,1759353037850,-35.14531281,0.00018,2]
[388767503,1759353037886,-4250.890519,0.00018,2]
[388767704,1759353039660,-88977.52764,0.00018,2]
[388767708,1759353039673,-54986.59241465,0.00018,2]
[388767711,1759353039682,-150.0,0.00018,2]
[388767714,1759353039691,-150.0,0.00018,2]
[388767717,1759353039703,-150.31187955,0.00018,2]
[388767720,1759353039711,-150.0,0.00018,2]
[388767723,1759353039721,-201.56431263,0.00018,2]
[388767726,1759353039730,-201.52108444,0.00018,2]
[388767728,1759353039739,-500.0,0.00018,2]
[388767730,1759353039749,-150.45751308,0.00018,2]
[388767732,1759353039759,-150.0,0.00018,2]
[388767734,1759353039768,-500.0,0.00018,2]
[388767736,1759353039778,-10753.64210905,0.00018,2]
[388767738,1759353039787,-151.0,0.00018,2]
[388767740,1759353039796,-221.64517136,0.00018,2]
[388767742,1759353039808,-3068.0,0.00018047,2]
[388767744,1759353039817,-17256.173,0.00018047,2]
[388767746,1759353039826,-440.091,0.00018047,2]
[388767748,1759353039835,-180.0,0.00018072,2]
[388767750,1759353039845,-903.53664767,0.000181,9]
[388767752,1759353039855,-500.0,0.00018118,2]
[388767754,1759353039863,-1341.0,0.00018118,2]
[388767756,1759353039873,-500.0,0.00018118,2]
[388767758,1759353039882,-1232.0,0.00018118,2]
[388767760,1759353039891,-150.0,0.00018118,2]
[388767762,1759353039901,-150.0,0.00018118,2]
[388767764,1759353039910,-200.0,0.00018133,2]
[388767766,1759353039919,-200.0,0.00018133,2]
[388767768,1759353039928,-200.0,0.00018133,2]
[388767770,1759353039937,-200.0,0.00018133,2]
[388767772,1759353039947,-230.48,0.00018145,2]
[388767774,1759353039956,-180.0,0.0001815,2]
[388767776,1759353039964,-2956.65781,0.0001818,2]
[388767778,1759353039973,-180.0,0.00018192,2]
[388767780,1759353039982,-506.13,0.00018242,2]
[388767782,1759353039991,-1806.59,0.00018242,2]
[388767783,1759353040000,-500.0,0.00018263,2]
[388767784,1759353040010,-500.0,0.00018263,2]
[388767785,1759353040020,-500.0,0.00018263,2]
[388767786,1759353040029,-2000.0,0.00018268,2]
[388767787,1759353040039,-300.0,0.00018268,2]
[388767788,1759353040048,-150.0,0.00018274,2]
[388767789,1759353040058,-150.0,0.00018274,2]
[388767790,1759353040067,-500.0,0.00018274,2]
[388767791,1759353040077,-224.0,0.00018274,2]
[388767792,1759353040087,-500.0,0.00018274,2]
[388767793,1759353040096,-1000.0,0.00018299,2]
[388767795,1759353040106,-180.0,0.00018312,2]
[388767797,1759353040115,-200.0,0.00018314,2]
[388767799,1759353040123,-200.0,0.00018314,2]
[388767801,1759353040132,-200.0,0.00018314,2]
[388767803,1759353040141,-200.0,0.00018314,2]
[388767805,1759353040150,-180.0,0.00018356,2]
[388767807,1759353040159,-576.89,0.00018356,2]
[388767809,1759353040169,-180.0,0.00018367,2]
[388767811,1759353040178,-180.0,0.00018379,2]
[388767813,1759353040188,-180.0,0.00018386,2]
[388767815,1759353040197,-500.0,0.00018392,2]
[388767817,1759353040206,-1341.0,0.00018392,2]
[388767819,1759353040215,-500.0,0.00018392,2]
[388767821,1759353040224,-1232.0,0.00018392,2]
[388767823,1759353040234,-150.0,0.00018392,2]
[388767825,1759353040243,-182.1371463,0.00018392,2]
[388767827,1759353040252,-150.0,0.000184,2]
[388767829,1759353040261,-5513.0,0.000184,3]
[388767831,1759353040270,-180.0,0.00018452,2]
[388767833,1759353040280,-300.0,0.00018452,2]
[388767835,1759353040289,-500.0,0.00018452,2]
[388767837,1759353040298,-300.0,0.00018452,2]
[388767839,1759353040308,-195.0,0.00018452,2]
[388767841,1759353040318,-250.0,0.00018452,2]
[388767843,1759353040327,-500.0,0.0001846,2]
[388767845,1759353040337,-500.0,0.0001846,2]
[388767847,1759353040346,-500.0,0.0001846,2]
[388767849,1759353040355,-500.0,0.0001846,2]
[388767851,1759353040364,-500.0,0.0001846,2]
[388767853,1759353040373,-500.28834514,0.0001846,2]
[388767855,1759353040382,-200.0,0.00018497,2]
[388767858,1759353040391,-200.0,0.00018497,2]
[388767860,1759353040401,-200.0,0.00018497,2]
[388767861,1759353040410,-151.0,0.00018497,2]
[388767863,1759353040424,-200.0,0.00018497,2]
[388767865,1759353040434,-192.83524863,0.00018499,2]
[388767867,1759353040443,-559.32895919,0.00018499,2]
[388767869,1759353040452,-23519.7666132,0.000185,2]
[388767875,1759353040502,-20001.82139997,0.000185,2]
[388767878,1759353040513,-1076.4004848,0.000185,2]
[388767880,1759353040524,-1239.62003232,0.000185,2]
[388767919,1759353040876,-391.17968175,0.000185,2]
[388768113,1759353042681,-7262.02455488,0.000185,2]
[388768126,1759353042790,-7056.5482133,0.000185,2]
[388768140,1759353042921,-1987.7726948,0.000185,2]
[388768475,1759353046176,-150.0,0.00017844,2]
[388768477,1759353046186,-1852.42,0.0001791,2]
[388768479,1759353046195,-57531.19952426,0.000185,2]
[388771281,1759353222606,-161.10732217,0.00016887,2]
[388771284,1759353231224,-381.79,0.00016887,2]
[388771286,1759353238926,-250.0,0.00016887,2]
[388771294,1759353247955,-168.25667783,0.00016887,2]
[388771352,1759353285063,-192.29356409,0.00016887,2]
[388771411,1759353401945,150.0,0.000131,2]
[388771412,1759353402410,150.0,0.0001428,2]
[388771413,1759353403444,150.0,0.0001547,2]
[388771428,1759353471634,159.55,8.821e-05,2]
[388771429,1759353471864,159.55,0.00011026,2]
[388771430,1759353472234,159.55,0.00013232,2]
[388771431,1759353472363,159.55,0.00015437,2]
[388771468,1759353516275,-1059.4885,0.000209,30]
[388771488,1759353646141,-792.61,0.00021945,30]
[388771498,1759353714430,267.9015,0.00021945,30]
[388771555,1759353924166,150.0,0.000131,2]
[388771556,1759353924482,150.0,0.0001428,2]
[388771557,1759353924693,150.0,0.0001547,2]
[388771629,1759354068093,-150.0,0.0001665,2]
[388771630,1759354068123,-132.0,0.00016719,2]
[388771631,1759354068608,250.0,0.00016543,2]
[388771632,1759354070297,-500.0,0.00016719,2]
[388771635,1759354077458,-252.46,0.00016719,2]
[388771645,1759354085415,-160.78,0.00016719,2]
[388771646,1759354088692,-211.22912126,0.00016719,2]
[388771649,1759354092413,-185.57,0.00016719,2]
[388771650,1759354095181,-341.70367919,0.00016719,2]
[388771651,1759354097011,-216.25719955,0.00016719,2]
[388771652,1759354097038,-19.36301983,0.00016787,2]
[388771654,1759354101412,-153.79786423,0.00016787,2]
[388771655,1759354101435,-53.66088732,0.00016852,2]
[388771666,1759354105684,-152.693927,0.00016852,2]
[388771667,1759354108722,-325.4106865,0.00016852,2]
[388771671,1759354113005,-277.38080999,0.00016852,2]
[388771676,1759354116552,-194.51279411,0.00016852,2]
[388771677,1759354118904,-301.34359072,0.00016852,2]
[388771678,1759354121577,13833.78715719,0.0001,2]
[388771679,1759354121866,4481.24943847,0.00015,2]
[388771682,1759354124507,-300.0,0.00016852,2]
[388771683,1759354126803,-288.54812668,0.00016852,2]
[388771684,1759354128698,-106.44917768,0.00016852,2]
[388771685,1759354128723,-147.2712394,0.00016865,2]
[388771686,1759354132638,-2.7287606,0.00016865,2]
[388771687,1759354132663,-133.03143591,0.00016887,2]
[388771688,1759354132689,-123.48937212,0.00016887,2]
[388771689,1759354136358,-235.37709007,0.00016767,2]
[388771690,1759354140765,-278.71187424,0.00016767,2]
[388771692,1759354144327,-127.40250269,0.00016767,2]
[388771693,1759354144349,-43.59749731,0.00016887,2]
[388771696,1759354148294,-37.27113057,0.00016887,2]
[388771727,1759354231878,-166.04,0.00016945,2]
[388771728,1759354231889,-160.89782321,0.00016953,2]
[388771729,1759354231899,-182.68631662,0.00016963,2]
[388771730,1759354231908,-151.0,0.00016997,2]
[388771731,1759354231918,-296.0,0.00016998,2]
[388771732,1759354231928,-514.84584017,0.00016998,2]
[388771733,1759354231940,-685.15415983,0.00016998,2]
[388771734,1759354231950,-300.0,0.00016998,2]
[388771735,1759354231960,-470.07400162,0.00016998,2]
[388771736,1759354231972,-79.92599838,0.00016998,2]
[388771737,1759354231982,-300.0,0.00016999,2]
[388771738,1759354231991,-139.71138132,0.00016999,2]
[388771739,1759354232011,-251.81889012,0.00016999,2]
[388771740,1759354232020,-216.6355671,0.00016999,2]
[388771741,1759354232030,-500.0,0.00016999,2]
[388771742,1759354232039,-500.0,0.00016999,2]
[388771743,1759354232048,-500.0,0.00016999,2]
[388771744,1759354232058,-500.0,0.00016999,2]
[388771745,1759354232068,-500.0,0.00016999,2]
[388771746,1759354232078,-295.60801441,0.00016999,2]
[388771747,1759354232087,-500.0,0.00016999,2]
[388771748,1759354232096,-500.0,0.00016999,2]
[388771749,1759354232106,-500.0,0.00016999,2]
[388771750,1759354232116,-193.70131554,0.00016999,2]
[388771751,1759354232126,-462.15738363,0.00016999,2]
[388771753,1759354232138,-37.84261637,0.00016999,2]
[388771754,1759354232148,-500.0,0.00016999,2]
[388771755,1759354232161,-386.85457139,0.00016999,2]
[388771756,1759354232172,-113.14542861,0.00016999,2]
[388771757,1759354232182,-170.37557139,0.00016999,2]
[388771758,1759354232194,-252.14493458,0.00016999,2]
[388771759,1759354232206,-77.47949403,0.00016999,2]
[388771760,1759354232215,-500.0,0.00016999,2]
[388771761,1759354232226,-500.0,0.00016999,2]
[388771762,1759354232236,-500.0,0.00016999,2]
[388771763,1759354232245,-500.0,0.00016999,2]
[388771764,1759354232256,-500.0,0.00016999,2]
[388771765,1759354232265,-629.93811514,0.00016999,2]
[388771766,1759354232275,-500.0,0.00016999,2]
[388771767,1759354232284,-500.0,0.00016999,2]
[388771769,1759354232293,-500.0,0.00016999,2]
[388771771,1759354232303,-500.0,0.00016999,2]
[388771773,1759354232312,-136.84367469,0.00016999,2]
[388771775,1759354232323,-298.86,0.00016999,2]
[388771777,1759354232335,-64.29632531,0.00016999,2]
[388771779,1759354232344,-500.0,0.00016999,2]
[388771781,1759354232354,-500.0,0.00016999,2]
[388771783,1759354232364,-218.35742737,0.00016999,2]
[388771786,1759354232380,-281.64257263,0.00016999,2]
[388771787,1759354232391,-500.0,0.00016999,2]
[388771788,1759354232401,-287.90980303,0.00016999,2]
[388771789,1759354232413,-212.09019697,0.00016999,2]
[388771790,1759354232423,-380.27186448,0.00016999,2]
[388771791,1759354232438,-119.72813552,0.00016999,2]
[388771792,1759354232448,-500.0,0.00016999,2]
[388771793,1759354232458,-500.0,0.00016999,2]
[388771794,1759354232468,-304.4033532,0.00016999,2]
[388771795,1759354232478,-56.23113158,0.00016999,2]
[388771796,1759354232502,-443.76886842,0.00016999,2]
[388771797,1759354232511,-15.22263158,0.00016999,2]
[388771800,1759354237787,-325.28905,0.00016999,2]
[388771801,1759354237901,-159.48831842,0.00016999,2]
[388771802,1759354237910,-291.09667158,0.00017,2]
[388771803,1759354237922,-958.37156715,0.00017,2]
[388771804,1759354237965,-1077.54486121,0.00017,2]
[388771805,1759354237975,-4908.59937104,0.00017,2]
[388771806,1759354238019,-771.70613724,0.00017,2]
[388771807,1759354238031,-4357.46173019,0.00017,2]
[388772352,1759354242785,-4111.28769877,0.00017,2]
[388772355,1759354242806,-841.0,0.00017,2]
[388772358,1759354242818,-13911.7660611,0.00017,2]
[388772362,1759354242842,-1238.19554192,0.00017,2]
[388772364,1759354242855,-279882.64255692,0.00017,2]
[388772367,1759354242866,-6209543.78246622,0.00017,2]
[388772369,1759354242879,-2148.6,0.00017,2]
[388772372,1759354242906,-107631.85760989,0.00017,2]
[388772377,1759354242938,-3430.27801453,0.00017,2]
[388772379,1759354242950,-788.85630932,0.00017,2]
[388772429,1759354243404,-10693.69057274,0.00017,2]
[388772435,1759354243459,-3353.77522107,0.00017,2]
[388772437,1759354243472,-5946.0066451,0.00017,2]
[388772440,1759354243484,-361.94908746,0.00017,2]
[388772549,1759354244593,-19871.11997992,0.00017,2]
[388772555,1759354244633,-10062.31479651,0.00017,2]
[388772557,1759354244644,-11821.78996157,0.00017,2]
[388772562,1759354244677,-699.5899999,0.00017,2]
[388772564,1759354244688,-258.49932407,0.00017,2]
[388772566,1759354244700,-779.36679134,0.00017,2]
[388772568,1759354244711,-24990.89411287,0.00017,2]
[388772582,1759354244830,-3592.83709111,0.00017,2]
[388772584,1759354244841,-4532.88287614,0.00017,2]
[388772693,1759354245806,-5104.86708127,0.00017,2]
[388772718,1759354246050,-49895.15636502,0.00017,2]
[388772721,1759354246061,-939.23470951,0.00017,2]
[388772723,1759354246072,-255.1919861,0.00017,2]
[388772727,1759354246105,-59520.50961051,0.00017,2]
[388772730,1759354246114,-25887.36762164,0.00017,2]
[388775170,1759354354721,214.06,0.000165,2]
[388775175,1759354379942,-464.09446215,0.0001666,2]
[388775176,1759354380814,200.0,0.000164,5]
[388775177,1759354381977,-160.63325505,0.0001666,2]
[388775179,1759354383185,500.0,0.000165,6]
[388775180,1759354385016,700.0,0.000166,6]
[388775181,1759354385086,-187.04317023,0.0001666,2]
[388775182,1759354387325,-268.48419458,0.0001666,2]
[388775186,1759354389399,-45.63891799,0.0001666,2]
[388775187,1759354389423,-292.15621329,0.000167,6]
[388775188,1759354392553,-589.77331578,0.000167,6]
[388775189,1759354396886,-118.07047093,0.000167,6]
[388775190,1759354396911,-70.86175234,0.000168,6]
[388775191,1759354401028,-170.68777673,0.000168,6]
[388775192,1759354405786,-195.0,0.000168,6]
[388775193,1759354408551,-277.54514286,0.000168,6]
[388775194,1759354412767,-312.41869605,0.000168,6]
[388775195,1759354416271,-273.48663202,0.000168,6]
[388775196,1759354446688,150.0,0.00014,2]
[388775197,1759354447279,150.0,0.0001518,2]
[388775198,1759354447917,150.0,0.0001637,2]
[388775206,1759354528996,209.62,0.00016334,2]
[388775207,1759354535994,662.05,0.00016334,2]
[388775214,1759354644766,659.59,0.00016345,2]
[388775215,1759354663569,5513.0,0.000166,5]
[388775219,1759354684054,672.27,0.00016314,2]
[388775229,1759354814292,175.48,8.127e-05,2]
[388775230,1759354814485,175.48,0.00010159,2]
[388775231,1759354814707,175.48,0.00012191,2]
[388775232,1759354814910,175.48,0.00014222,2]
[388775233,1759354815131,175.48,0.00016254,2]
[388775234,1759354819094,879.6,0.00016227,2]
[388775238,1759354840108,1667.12,0.00016222,2]
[388775247,1759354874622,1286.0,0.0001621,2]
[388775255,1759354971536,150.0,0.00013,2]
[388775256,1759354971952,150.0,0.0001418,2]
[388775257,1759354972299,150.0,0.0001537,2]
[388775258,1759354972687,150.0,0.0001655,2]
[388775261,1759354993150,666.0,0.00016081,3]
[388775272,1759355090759,165.85,0.00016106,2]
[388775275,1759355109134,150.0,0.00015288,2]
[388775276,1759355109192,150.0,0.00015854,2]
[388775277,1759355109256,150.0,0.00015476,2]
[388775278,1759355109307,150.0,0.00016231,2]
[388775279,1759355109802,150.0,0.00015665,2]
[388775280,1759355109850,150.0,0.0001642,2]
[388775281,1759355109901,150.0,0.00016043,2]
[388775282,1759355112756,150.0,0.00015288,2]
[388775283,1759355112829,150.0,0.000155,2]
[388775284,1759355112928,150.0,0.00015712,2]
[388775285,1759355113091,150.0,0.00015925,2]
[388775286,1759355113150,150.0,0.00016137,2]
[388775287,1759355113199,150.0,0.00016349,2]
[388775288,1759355113261,150.0,0.00016562,2]
[388775289,1759355113394,150.0,0.00015288,2]
[388775290,1759355113516,150.0,0.0001553,2]
[388775291,1759355113563,150.0,0.00016016,2]
[388775292,1759355113630,150.0,0.00015773,2]
[388775293,1759355113683,150.0,0.00016258,2]
[388775294,1759355113731,150.0,0.00016501,2]
[388775295,1759355113769,150.0,0.00016022,2]
[388775296,1759355120031,150.0,0.00015288,2]
[388775297,1759355120087,150.0,0.00015712,2]
[388775298,1759355120212,150.0,0.00016137,2]
[388775299,1759355120255,150.0,0.00016562,2]
[388775300,1759355121933,150.0,0.00015288,2]
[388775302,1759355128472,150.0,0.00015288,2]
[388775303,1759355128567,150.0,0.00015288,2]
[388775304,1759355128749,150.0,0.00015854,2]
[388775305,1759355128790,150.0,0.0001642,2]
[388775306,1759355128903,150.0,0.00015288,2]
[388775307,1759355131250,150.0,0.00015288,2]
[388775308,1759355131516,150.0,0.00016137,2]
[388775309,1759355138255,150.0,0.00015288,2]
[388775310,1759355138300,150.0,0.00015571,2]
[388775311,1759355138379,150.0,0.00015854,2]